[Event "Titled Tuesday Blitz May 16 Late 2023"]
[White "Bitoon, Richard"]
[Black "Hajiyev, Kanan"]
[WhiteFideId "5201110"]
[BlackFideId "13404148"]
[WhiteElo "2374"]
[BlackElo "2103"]
[Result "1-0"]
[Round "05"]
[TimeControl "180+2"]
[Date "2023.05.16"]
[WhiteClock "0:00:38"]
[BlackClock "0:00:07"]

1. e4 {[%clk 0:03:00]}  c6 {[%clk 0:02:49]} 2. d4 {[%clk 0:02:59]}  d5 {[%clk 0:02:50]} 3. Nc3 {[%clk 0:02:59]}  a6 {[%clk 0:02:50]} 4. g3 {[%clk 0:02:58]}  dxe4 {[%clk 0:02:49]} 5. Nxe4 {[%clk 0:02:59]}  Bf5 {[%clk 0:02:50]} 6. Bg2 {[%clk 0:02:57]}  e6 {[%clk 0:02:50]} 7. Ne2 {[%clk 0:02:57]}  Nf6 {[%clk 0:02:51]} 8. Ng5 {[%clk 0:02:50]}  h6 {[%clk 0:02:48]} 9. Nf3 {[%clk 0:02:48]}  Bd6 {[%clk 0:02:41]} 10. O-O {[%clk 0:02:46]}  O-O {[%clk 0:02:41]} 11. c3 {[%clk 0:02:43]}  Nbd7 {[%clk 0:02:41]} 12. a4 {[%clk 0:02:41]}  a5 {[%clk 0:02:39]} 13. Re1 {[%clk 0:02:23]}  Qc7 {[%clk 0:02:39]} 14. Nf4 {[%clk 0:02:16]}  Nd5 {[%clk 0:02:29]} 15. Nd3 {[%clk 0:02:16]}  c5 {[%clk 0:02:21]} 16. dxc5 {[%clk 0:02:15]}  Nxc5 {[%clk 0:02:21]} 17. Nxc5 {[%clk 0:02:04]}  Bxc5 {[%clk 0:02:19]} 18. Qb3 {[%clk 0:02:04]}  Ra6 {[%clk 0:02:13]} 19. Ne5 {[%clk 0:02:03]}  Rb6 {[%clk 0:02:10]} 20. Qa2 {[%clk 0:01:59]}  Rd6 {[%clk 0:01:56]} 21. Nc4 {[%clk 0:01:55]}  Rd7 {[%clk 0:01:48]} 22. Qb3 {[%clk 0:01:54]}  f6 {[%clk 0:01:22]} 23. Ne3 {[%clk 0:01:54]}  Nxe3 {[%clk 0:01:16]} 24. Bxe3 {[%clk 0:01:55]}  Kh8 {[%clk 0:01:08]} 25. h3 {[%clk 0:01:52]}  e5 {[%clk 0:01:05]} 26. Qb5 {[%clk 0:01:52]}  Bxe3 {[%clk 0:01:00]} 27. Rxe3 {[%clk 0:01:53]}  Rd2 {[%clk 0:00:58]} 28. b4 {[%clk 0:01:34]}  axb4 {[%clk 0:00:50]} 29. cxb4 {[%clk 0:01:29]}  Qc2 {[%clk 0:00:36]} 30. Qc5 {[%clk 0:01:17]}  Rc8 {[%clk 0:00:32]} 31. Qxc2 {[%clk 0:01:17]}  Rcxc2 {[%clk 0:00:33]} 32. Rf1 {[%clk 0:01:17]}  Bd3 {[%clk 0:00:32]} 33. Rxd3 {[%clk 0:01:18]}  Rxd3 {[%clk 0:00:33]} 34. Be4 {[%clk 0:01:18]}  Rdc3 {[%clk 0:00:31]} 35. Bxc2 {[%clk 0:01:19]}  Rxc2 {[%clk 0:00:32]} 36. Rd1 {[%clk 0:01:18]}  Rb2 {[%clk 0:00:28]} 37. b5 {[%clk 0:01:17]}  Rb4 {[%clk 0:00:28]} 38. Rd8+ {[%clk 0:01:16]}  Kh7 {[%clk 0:00:28]} 39. Ra8 {[%clk 0:01:17]}  b6 {[%clk 0:00:28]} 40. Kf1 {[%clk 0:01:16]}  Rb2 {[%clk 0:00:27]} 41. Kg2 {[%clk 0:01:14]}  e4 {[%clk 0:00:27]} 42. Re8 {[%clk 0:01:14]}  f5 {[%clk 0:00:28]} 43. g4 {[%clk 0:01:14]}  fxg4 {[%clk 0:00:26]} 44. hxg4 {[%clk 0:01:15]}  Rb4 {[%clk 0:00:26]} 45. Re6 {[%clk 0:01:14]}  Rxa4 {[%clk 0:00:24]} 46. Rxb6 {[%clk 0:01:15]}  Rb4 {[%clk 0:00:25]} 47. Kg3 {[%clk 0:01:15]}  Rb3+ {[%clk 0:00:22]} 48. Kf4 {[%clk 0:01:15]}  Rf3+ {[%clk 0:00:23]} 49. Kxe4 {[%clk 0:01:16]}  Rxf2 {[%clk 0:00:23]} 50. Rd6 {[%clk 0:01:10]}  Rg2 {[%clk 0:00:24]} 51. Kf4 {[%clk 0:01:06]}  g5+ {[%clk 0:00:21]} 52. Kf5 {[%clk 0:01:05]}  Rf2+ {[%clk 0:00:21]} 53. Ke5 {[%clk 0:01:05]}  Rf4 {[%clk 0:00:21]} 54. Rd4 {[%clk 0:01:05]}  Rf1 {[%clk 0:00:16]} 55. Kd6 {[%clk 0:01:04]}  Rb1 {[%clk 0:00:16]} 56. Kc6 {[%clk 0:01:03]}  h5 {[%clk 0:00:16]} 57. gxh5 {[%clk 0:01:03]}  Kh6 {[%clk 0:00:17]} 58. b6 {[%clk 0:00:57]}  Kxh5 {[%clk 0:00:16]} 59. b7 {[%clk 0:00:58]}  Rxb7 {[%clk 0:00:11]} 60. Kxb7 {[%clk 0:00:59]}  g4 {[%clk 0:00:12]} 61. Rd8 {[%clk 0:00:35]}  g3 {[%clk 0:00:11]} 62. Rg8 {[%clk 0:00:36]}  Kh4 {[%clk 0:00:11]} 63. Kc6 {[%clk 0:00:36]}  Kh3 {[%clk 0:00:11]} 64. Kd5 {[%clk 0:00:37]}  g2 {[%clk 0:00:12]} 65. Ke4 {[%clk 0:00:38]}  Kh2 {[%clk 0:00:10]} 66. Kf3 {[%clk 0:00:39]}  g1=Q {[%clk 0:00:07]} 67. Rh8# {[%clk 0:00:38]} 1-0


[Site "https://www.chess.com"]

[Event "Titled Tuesday Blitz May 16 Late 2023"]
[White "benny_aizenberg"]
[Black "Seletsky, Grigory"]
[BlackFideId "14112191"]
[WhiteElo "2668"]
[BlackElo "2491"]
[Result "1-0"]
[Round "05"]
[TimeControl "180+2"]
[Date "2023.05.16"]
[WhiteClock "0:01:00"]
[BlackClock "0:00:40"]

1. f4 {[%clk 0:03:00]}  d5 {[%clk 0:02:58]} 2. Nf3 {[%clk 0:03:01]}  g6 {[%clk 0:02:58]} 3. g3 {[%clk 0:03:01]}  Bg7 {[%clk 0:02:59]} 4. Bg2 {[%clk 0:03:00]}  c6 {[%clk 0:02:59]} 5. O-O {[%clk 0:03:00]}  Qb6+ {[%clk 0:02:59]} 6. Kh1 {[%clk 0:03:00]}  Nh6 {[%clk 0:02:58]} 7. c3 {[%clk 0:02:58]}  O-O {[%clk 0:02:55]} 8. d3 {[%clk 0:02:57]}  f5 {[%clk 0:02:50]} 9. Qe1 {[%clk 0:02:46]}  Nd7 {[%clk 0:02:40]} 10. e4 {[%clk 0:02:40]}  e6 {[%clk 0:02:36]} 11. Ng5 {[%clk 0:02:30]}  Nf6 {[%clk 0:02:36]} 12. e5 {[%clk 0:02:27]}  Ne8 {[%clk 0:02:35]} 13. Qe2 {[%clk 0:02:25]}  Nf7 {[%clk 0:02:33]} 14. Be3 {[%clk 0:02:24]}  Qc7 {[%clk 0:02:31]} 15. Bc5 {[%clk 0:02:05]}  Nxg5 {[%clk 0:02:29]} 16. Bxf8 {[%clk 0:02:05]}  Kxf8 {[%clk 0:02:27]} 17. fxg5 {[%clk 0:02:05]}  Qxe5 {[%clk 0:02:18]} 18. Qxe5 {[%clk 0:02:05]}  Bxe5 {[%clk 0:02:18]} 19. d4 {[%clk 0:02:04]}  Bg7 {[%clk 0:02:16]} 20. g4 {[%clk 0:02:04]}  Nd6 {[%clk 0:02:10]} 21. Nd2 {[%clk 0:02:03]}  Ke7 {[%clk 0:02:07]} 22. gxf5 {[%clk 0:02:02]}  exf5 {[%clk 0:02:02]} 23. Rae1+ {[%clk 0:02:01]}  Ne4 {[%clk 0:02:03]} 24. Nxe4 {[%clk 0:01:11]}  dxe4 {[%clk 0:02:01]} 25. Bxe4 {[%clk 0:01:12]}  fxe4 {[%clk 0:01:38]} 26. Rxe4+ {[%clk 0:01:12]}  Kd6 {[%clk 0:01:38]} 27. Re8 {[%clk 0:01:12]}  Bh3 {[%clk 0:01:23]} 28. Rxa8 {[%clk 0:01:12]}  Bxf1 {[%clk 0:01:21]} 29. Rg8 {[%clk 0:01:12]}  Bxd4 {[%clk 0:01:16]} 30. cxd4 {[%clk 0:01:04]}  Bc4 {[%clk 0:01:15]} 31. Rg7 {[%clk 0:01:04]}  b5 {[%clk 0:01:03]} 32. b3 {[%clk 0:01:02]}  Bd5+ {[%clk 0:01:01]} 33. Kg1 {[%clk 0:01:02]}  a5 {[%clk 0:01:00]} 34. Rxh7 {[%clk 0:01:02]}  a4 {[%clk 0:00:59]} 35. bxa4 {[%clk 0:01:03]}  bxa4 {[%clk 0:00:59]} 36. a3 {[%clk 0:01:03]}  Be4 {[%clk 0:00:56]} 37. Kf2 {[%clk 0:01:02]}  Kd5 {[%clk 0:00:57]} 38. Ke3 {[%clk 0:01:02]}  Bc2 {[%clk 0:00:54]} 39. Rc7 {[%clk 0:01:01]}  Bf5 {[%clk 0:00:48]} 40. h4 {[%clk 0:01:00]}  Kd6 {[%clk 0:00:46]} 41. Rf7 {[%clk 0:00:59]}  Ke6 {[%clk 0:00:44]} 42. Rf6+ {[%clk 0:00:59]}  Kd5 {[%clk 0:00:40]} 43. h5 {[%clk 0:01:00]} 1-0


[Site "https://www.chess.com"]

[Event "Titled Tuesday Blitz May 16 Late 2023"]
[White "Molenda, Marcin"]
[Black "Vlassov, Nikolai"]
[WhiteFideId "1173065"]
[BlackFideId "4103360"]
[WhiteElo "2286"]
[BlackElo "2324"]
[Result "0-1"]
[Round "05"]
[TimeControl "180+2"]
[Date "2023.05.16"]
[WhiteClock "0:02:05"]
[BlackClock "0:02:43"]

1. e4 {[%clk 0:03:00]}  Nc6 {[%clk 0:02:58]} 2. d4 {[%clk 0:02:57]}  d5 {[%clk 0:02:59]} 3. exd5 {[%clk 0:02:57]}  Qxd5 {[%clk 0:02:58]} 4. Nf3 {[%clk 0:02:57]}  Bg4 {[%clk 0:02:58]} 5. Be2 {[%clk 0:02:58]}  O-O-O {[%clk 0:02:58]} 6. c4 {[%clk 0:02:48]}  Qh5 {[%clk 0:02:57]} 7. d5 {[%clk 0:02:48]}  e6 {[%clk 0:02:57]} 8. Nc3 {[%clk 0:02:43]}  Nf6 {[%clk 0:02:57]} 9. O-O {[%clk 0:02:38]}  exd5 {[%clk 0:02:56]} 10. h3 {[%clk 0:02:38]}  dxc4 {[%clk 0:02:51]} 11. hxg4 {[%clk 0:02:36]}  Nxg4 {[%clk 0:02:51]} 12. Qc2 {[%clk 0:02:35]}  Nd4 {[%clk 0:02:46]} 13. Nxd4 {[%clk 0:02:05]}  Qh2# {[%clk 0:02:43]} 0-1


[Site "https://www.chess.com"]

[Event "Titled Tuesday Blitz May 16 Late 2023"]
[White "Fishbein, Alexander"]
[Black "Geivondian, Arman"]
[WhiteFideId "2000377"]
[BlackFideId "24102032"]
[WhiteElo "2415"]
[BlackElo "2278"]
[Result "1-0"]
[Round "05"]
[TimeControl "180+2"]
[Date "2023.05.16"]
[WhiteClock "0:01:53"]
[BlackClock "0:02:32"]

1. e4 {[%clk 0:02:54]}  c6 {[%clk 0:03:00]} 2. d3 {[%clk 0:02:53]}  d5 {[%clk 0:03:01]} 3. Nd2 {[%clk 0:02:53]}  Qc7 {[%clk 0:03:01]} 4. Ngf3 {[%clk 0:02:51]}  e5 {[%clk 0:03:01]} 5. g3 {[%clk 0:02:51]}  Nf6 {[%clk 0:03:01]} 6. Bg2 {[%clk 0:02:51]}  Bd6 {[%clk 0:03:02]} 7. O-O {[%clk 0:02:51]}  O-O {[%clk 0:03:03]} 8. Re1 {[%clk 0:02:48]}  Nbd7 {[%clk 0:03:03]} 9. b3 {[%clk 0:02:44]}  Re8 {[%clk 0:03:04]} 10. Bb2 {[%clk 0:02:43]}  Nf8 {[%clk 0:03:04]} 11. exd5 {[%clk 0:02:39]}  cxd5 {[%clk 0:03:04]} 12. c4 {[%clk 0:02:39]}  d4 {[%clk 0:03:03]} 13. c5 {[%clk 0:02:38]}  Qxc5 {[%clk 0:02:59]} 14. Nc4 {[%clk 0:02:35]}  b5 {[%clk 0:02:43]} 15. b4 {[%clk 0:02:21]}  Qc7 {[%clk 0:02:36]} 16. Nxd6 {[%clk 0:02:21]}  Qxd6 {[%clk 0:02:37]} 17. Nxe5 {[%clk 0:02:03]}  Rb8 {[%clk 0:02:36]} 18. Nc6 {[%clk 0:01:56]}  Rxe1+ {[%clk 0:02:35]} 19. Qxe1 {[%clk 0:01:55]}  Rb6 {[%clk 0:02:35]} 20. Ne7+ {[%clk 0:01:53]}  Kh8 {[%clk 0:02:32]} 21. Nxc8 {[%clk 0:01:53]} 1-0


[Site "https://www.chess.com"]

[Event "Titled Tuesday Blitz May 16 Late 2023"]
[White "Piesik, Piotr"]
[Black "Ognean, Mihnea-Ionut"]
[WhiteFideId "1136194"]
[BlackFideId "1232347"]
[WhiteElo "2299"]
[BlackElo "2215"]
[Result "0-1"]
[Round "05"]
[TimeControl "180+2"]
[Date "2023.05.16"]
[WhiteClock "0:00:13"]
[BlackClock "0:00:19"]

1. Nf3 {[%clk 0:02:56]}  Nf6 {[%clk 0:02:59]} 2. g3 {[%clk 0:02:56]}  d5 {[%clk 0:02:56]} 3. Bg2 {[%clk 0:02:57]}  e6 {[%clk 0:02:56]} 4. O-O {[%clk 0:02:58]}  Be7 {[%clk 0:02:50]} 5. d3 {[%clk 0:02:59]}  c5 {[%clk 0:02:47]} 6. Nbd2 {[%clk 0:03:00]}  Nc6 {[%clk 0:02:45]} 7. e4 {[%clk 0:03:01]}  Qc7 {[%clk 0:02:44]} 8. Re1 {[%clk 0:03:00]}  O-O {[%clk 0:02:37]} 9. c3 {[%clk 0:02:55]}  b5 {[%clk 0:02:28]} 10. e5 {[%clk 0:02:55]}  Nd7 {[%clk 0:02:27]} 11. Qe2 {[%clk 0:02:55]}  a5 {[%clk 0:02:23]} 12. Nf1 {[%clk 0:02:54]}  Ba6 {[%clk 0:02:18]} 13. Bf4 {[%clk 0:02:52]}  Rfc8 {[%clk 0:02:16]} 14. h4 {[%clk 0:02:51]}  h6 {[%clk 0:02:09]} 15. g4 {[%clk 0:02:48]}  Nf8 {[%clk 0:02:03]} 16. Ng3 {[%clk 0:02:46]}  Ng6 {[%clk 0:02:01]} 17. Qd2 {[%clk 0:02:43]}  Nxh4 {[%clk 0:01:54]} 18. Nxh4 {[%clk 0:02:42]}  Bxh4 {[%clk 0:01:55]} 19. Nh5 {[%clk 0:02:31]}  Qd8 {[%clk 0:01:43]} 20. Re3 {[%clk 0:02:18]}  Bg5 {[%clk 0:01:37]} 21. Bxg5 {[%clk 0:02:10]}  Qxg5 {[%clk 0:01:38]} 22. Qe2 {[%clk 0:02:08]}  b4 {[%clk 0:01:12]} 23. f4 {[%clk 0:02:06]}  Qd8 {[%clk 0:01:13]} 24. c4 {[%clk 0:01:55]}  Nd4 {[%clk 0:01:11]} 25. Qf2 {[%clk 0:01:53]}  dxc4 {[%clk 0:01:05]} 26. Bxa8 {[%clk 0:01:52]}  Rxa8 {[%clk 0:01:06]} 27. dxc4 {[%clk 0:01:51]}  Bxc4 {[%clk 0:01:05]} 28. Kh2 {[%clk 0:01:39]}  Ba6 {[%clk 0:01:00]} 29. Rd1 {[%clk 0:01:36]}  Rc8 {[%clk 0:00:55]} 30. Kh3 {[%clk 0:01:34]}  Bb7 {[%clk 0:00:55]} 31. f5 {[%clk 0:01:27]}  exf5 {[%clk 0:00:35]} 32. gxf5 {[%clk 0:01:27]}  Qg5 {[%clk 0:00:35]} 33. Ng3 {[%clk 0:01:26]}  h5 {[%clk 0:00:25]} 34. Rxd4 {[%clk 0:01:14]}  cxd4 {[%clk 0:00:25]} 35. Rd3 {[%clk 0:01:11]}  Qg4+ {[%clk 0:00:24]} 36. Kh2 {[%clk 0:01:10]}  h4 {[%clk 0:00:24]} 37. Nf1 {[%clk 0:01:00]}  Rc1 {[%clk 0:00:23]} 38. e6 {[%clk 0:00:48]}  fxe6 {[%clk 0:00:20]} 39. fxe6 {[%clk 0:00:48]}  Qxe6 {[%clk 0:00:19]} 40. Rxd4 {[%clk 0:00:41]}  Qe5+ {[%clk 0:00:18]} 41. Qf4 {[%clk 0:00:41]}  Qxf4+ {[%clk 0:00:17]} 42. Rxf4 {[%clk 0:00:41]}  Rc2+ {[%clk 0:00:17]} 43. Kh3 {[%clk 0:00:41]}  Bg2+ {[%clk 0:00:17]} 44. Kxh4 {[%clk 0:00:40]}  Bxf1 {[%clk 0:00:18]} 45. Rxf1 {[%clk 0:00:40]}  Rxb2 {[%clk 0:00:19]} 46. Rf5 {[%clk 0:00:39]}  Rxa2 {[%clk 0:00:19]} 47. Rb5 {[%clk 0:00:39]}  Ra3 {[%clk 0:00:19]} 48. Kg5 {[%clk 0:00:39]}  Kf7 {[%clk 0:00:20]} 49. Kf5 {[%clk 0:00:38]}  Ke7 {[%clk 0:00:20]} 50. Ke5 {[%clk 0:00:38]}  Kd7 {[%clk 0:00:20]} 51. Rb7+ {[%clk 0:00:37]}  Kc6 {[%clk 0:00:21]} 52. Rxg7 {[%clk 0:00:37]}  b3 {[%clk 0:00:20]} 53. Rg3 {[%clk 0:00:30]}  a4 {[%clk 0:00:20]} 54. Kd4 {[%clk 0:00:30]}  Ra2 {[%clk 0:00:20]} 55. Kc3 {[%clk 0:00:24]}  b2 {[%clk 0:00:19]} 56. Kc2 {[%clk 0:00:23]}  a3 {[%clk 0:00:19]} 57. Rg6+ {[%clk 0:00:17]}  Kd5 {[%clk 0:00:19]} 58. Rg5+ {[%clk 0:00:17]}  Ke6 {[%clk 0:00:20]} 59. Rb5 {[%clk 0:00:15]}  Ra1 {[%clk 0:00:19]} 60. Rb6+ {[%clk 0:00:15]}  Kd5 {[%clk 0:00:19]} 61. Rb8 {[%clk 0:00:13]}  Rc1+ {[%clk 0:00:19]} 0-1


[Site "https://www.chess.com"]

[Event "Titled Tuesday Blitz May 16 Late 2023"]
[White "ElDivis"]
[Black "Koellner, Ruben Gideon"]
[BlackFideId "12993093"]
[WhiteElo "2477"]
[BlackElo "2314"]
[Result "1-0"]
[Round "05"]
[TimeControl "180+2"]
[Date "2023.05.16"]
[WhiteClock "0:00:13"]
[BlackClock "0:00:00"]

1. e4 {[%clk 0:03:00]}  d6 {[%clk 0:02:47]} 2. d4 {[%clk 0:03:00]}  Nf6 {[%clk 0:02:47]} 3. Bd3 {[%clk 0:02:58]}  e5 {[%clk 0:02:48]} 4. c3 {[%clk 0:02:57]}  Nbd7 {[%clk 0:02:47]} 5. f4 {[%clk 0:02:56]}  c5 {[%clk 0:02:46]} 6. dxe5 {[%clk 0:02:50]}  dxe5 {[%clk 0:02:47]} 7. f5 {[%clk 0:02:47]}  c4 {[%clk 0:02:46]} 8. Bc2 {[%clk 0:02:41]}  b5 {[%clk 0:02:43]} 9. Be3 {[%clk 0:02:34]}  Bb7 {[%clk 0:02:43]} 10. Qc1 {[%clk 0:02:32]}  Nxe4 {[%clk 0:02:39]} 11. Nf3 {[%clk 0:02:22]}  Bc5 {[%clk 0:02:38]} 12. O-O {[%clk 0:02:15]}  Qb6 {[%clk 0:02:36]} 13. Re1 {[%clk 0:02:11]}  f6 {[%clk 0:02:31]} 14. Na3 {[%clk 0:02:02]}  Bxe3+ {[%clk 0:02:28]} 15. Qxe3 {[%clk 0:02:03]}  Qxe3+ {[%clk 0:02:26]} 16. Rxe3 {[%clk 0:02:04]}  Nd6 {[%clk 0:02:27]} 17. Rd1 {[%clk 0:01:58]}  Ke7 {[%clk 0:02:27]} 18. Nd4 {[%clk 0:01:40]}  a6 {[%clk 0:02:24]} 19. Ne6 {[%clk 0:01:39]}  Rhg8 {[%clk 0:02:18]} 20. b3 {[%clk 0:01:37]}  Rac8 {[%clk 0:02:17]} 21. bxc4 {[%clk 0:01:35]}  Nxc4 {[%clk 0:02:18]} 22. Nxc4 {[%clk 0:01:35]}  Rxc4 {[%clk 0:02:13]} 23. Bb3 {[%clk 0:01:34]}  Rg4 {[%clk 0:02:10]} 24. Rxd7+ {[%clk 0:01:15]}  Kxd7 {[%clk 0:02:10]} 25. Nc5+ {[%clk 0:01:16]}  Kc6 {[%clk 0:01:55]} 26. Nxb7 {[%clk 0:01:15]}  Rb8 {[%clk 0:01:53]} 27. Bd1 {[%clk 0:01:04]}  Rf4 {[%clk 0:01:47]} 28. Na5+ {[%clk 0:00:57]}  Kb6 {[%clk 0:01:45]} 29. Nb3 {[%clk 0:00:57]}  Rxf5 {[%clk 0:01:45]} 30. Rd3 {[%clk 0:00:48]}  Kc7 {[%clk 0:01:41]} 31. Nc5 {[%clk 0:00:45]}  Rb6 {[%clk 0:01:39]} 32. Bg4 {[%clk 0:00:35]}  Rf4 {[%clk 0:01:38]} 33. Ne6+ {[%clk 0:00:35]}  Rxe6 {[%clk 0:01:38]} 34. Bxe6 {[%clk 0:00:36]}  e4 {[%clk 0:01:31]} 35. Rd4 {[%clk 0:00:32]}  f5 {[%clk 0:01:28]} 36. Bb3 {[%clk 0:00:22]}  g6 {[%clk 0:01:23]} 37. Bd1 {[%clk 0:00:21]}  Rh4 {[%clk 0:01:18]} 38. Be2 {[%clk 0:00:18]}  g5 {[%clk 0:01:10]} 39. Rd5 {[%clk 0:00:16]}  f4 {[%clk 0:01:03]} 40. Rxg5 {[%clk 0:00:16]}  Kd6 {[%clk 0:01:03]} 41. a4 {[%clk 0:00:16]}  bxa4 {[%clk 0:01:02]} 42. Ra5 {[%clk 0:00:16]}  f3 {[%clk 0:00:59]} 43. gxf3 {[%clk 0:00:14]}  exf3 {[%clk 0:01:00]} 44. Bxf3 {[%clk 0:00:14]}  Rc4 {[%clk 0:01:00]} 45. Rxa6+ {[%clk 0:00:14]}  Ke5 {[%clk 0:00:59]} 46. Be2 {[%clk 0:00:14]}  Rxc3 {[%clk 0:00:55]} 47. Rxa4 {[%clk 0:00:14]}  Rc7 {[%clk 0:00:55]} 48. Bf1 {[%clk 0:00:14]}  Kf5 {[%clk 0:00:54]} 49. Ra5+ {[%clk 0:00:14]}  Kg6 {[%clk 0:00:54]} 50. Ra3 {[%clk 0:00:14]}  Kg7 {[%clk 0:00:53]} 51. Rg3+ {[%clk 0:00:14]}  Kh8 {[%clk 0:00:53]} 52. Rf3 {[%clk 0:00:15]}  Rg7+ {[%clk 0:00:53]} 53. Bg2 {[%clk 0:00:15]}  Re7 {[%clk 0:00:52]} 54. h3 {[%clk 0:00:16]}  Kg7 {[%clk 0:00:52]} 55. Kh2 {[%clk 0:00:16]}  Re5 {[%clk 0:00:52]} 56. Rf4 {[%clk 0:00:17]}  Rg5 {[%clk 0:00:52]} 57. Be4 {[%clk 0:00:17]}  Re5 {[%clk 0:00:52]} 58. Rh4 {[%clk 0:00:18]}  h6 {[%clk 0:00:45]} 59. Rg4+ {[%clk 0:00:18]}  Kh8 {[%clk 0:00:42]} 60. h4 {[%clk 0:00:17]}  Re6 {[%clk 0:00:42]} 61. Kg3 {[%clk 0:00:18]}  Rf6 {[%clk 0:00:42]} 62. h5 {[%clk 0:00:17]}  Rf7 {[%clk 0:00:38]} 63. Rg6 {[%clk 0:00:16]}  Kh7 {[%clk 0:00:18]} 64. Kg4 {[%clk 0:00:16]}  Rg7 {[%clk 0:00:17]} 65. Bf5 {[%clk 0:00:16]}  Rg8 {[%clk 0:00:15]} 66. Kf4 {[%clk 0:00:15]}  Rg7 {[%clk 0:00:15]} 67. Ke5 {[%clk 0:00:15]}  Rg8 {[%clk 0:00:14]} 68. Kf6 {[%clk 0:00:16]}  Rf8+ {[%clk 0:00:15]} 69. Ke6 {[%clk 0:00:16]}  Rg8 {[%clk 0:00:00]} 70. Kf7 {[%clk 0:00:13]} 1-0


[Site "https://www.chess.com"]

[Event "Titled Tuesday Blitz May 16 Late 2023"]
[White "chess123456s"]
[Black "Lucas, Arthur"]
[BlackFideId "26093073"]
[WhiteElo "2607"]
[BlackElo "2251"]
[Result "1-0"]
[Round "05"]
[TimeControl "180+2"]
[Date "2023.05.16"]
[WhiteClock "0:00:46"]
[BlackClock "0:00:07"]

1. e4 {[%clk 0:03:00]}  e5 {[%clk 0:02:59]} 2. Nf3 {[%clk 0:03:00]}  Nf6 {[%clk 0:02:58]} 3. d4 {[%clk 0:02:59]}  Nxe4 {[%clk 0:02:56]} 4. Bd3 {[%clk 0:02:59]}  d5 {[%clk 0:02:56]} 5. Nxe5 {[%clk 0:02:59]}  Bd6 {[%clk 0:02:53]} 6. O-O {[%clk 0:02:58]}  O-O {[%clk 0:02:52]} 7. c4 {[%clk 0:02:59]}  c6 {[%clk 0:02:36]} 8. Nc3 {[%clk 0:02:55]}  Nxc3 {[%clk 0:02:35]} 9. bxc3 {[%clk 0:02:56]}  dxc4 {[%clk 0:02:31]} 10. Bxc4 {[%clk 0:02:51]}  Nd7 {[%clk 0:02:23]} 11. f4 {[%clk 0:02:46]}  Nxe5 {[%clk 0:02:16]} 12. fxe5 {[%clk 0:02:45]}  Be7 {[%clk 0:02:16]} 13. Qh5 {[%clk 0:02:09]}  Be6 {[%clk 0:02:13]} 14. Bd3 {[%clk 0:01:59]}  g6 {[%clk 0:02:04]} 15. Qf3 {[%clk 0:01:58]}  f5 {[%clk 0:01:54]} 16. Bh6 {[%clk 0:01:56]}  Rf7 {[%clk 0:01:52]} 17. Rab1 {[%clk 0:01:53]}  b6 {[%clk 0:01:49]} 18. a4 {[%clk 0:01:48]}  Rc8 {[%clk 0:01:42]} 19. Kh1 {[%clk 0:01:41]}  Bg5 {[%clk 0:01:29]} 20. Bxg5 {[%clk 0:01:37]}  Qxg5 {[%clk 0:01:29]} 21. c4 {[%clk 0:01:36]}  Rd7 {[%clk 0:01:26]} 22. Qf2 {[%clk 0:01:35]}  Rcd8 {[%clk 0:01:26]} 23. d5 {[%clk 0:01:29]}  cxd5 {[%clk 0:01:25]} 24. c5 {[%clk 0:01:30]}  bxc5 {[%clk 0:01:18]} 25. Qxc5 {[%clk 0:01:31]}  Qe7 {[%clk 0:01:16]} 26. Qa5 {[%clk 0:01:27]}  Rc7 {[%clk 0:01:09]} 27. Qa6 {[%clk 0:01:22]}  Kg7 {[%clk 0:01:02]} 28. Rbc1 {[%clk 0:01:20]}  Rdc8 {[%clk 0:00:59]} 29. Rcd1 {[%clk 0:01:19]}  Rc5 {[%clk 0:00:54]} 30. Be2 {[%clk 0:01:17]}  R8c6 {[%clk 0:00:49]} 31. Qd3 {[%clk 0:01:14]}  Rc3 {[%clk 0:00:49]} 32. Qb5 {[%clk 0:01:12]}  Qc5 {[%clk 0:00:44]} 33. Qb7+ {[%clk 0:01:09]}  Rc7 {[%clk 0:00:45]} 34. Qb8 {[%clk 0:01:08]}  Qe3 {[%clk 0:00:28]} 35. Bf3 {[%clk 0:01:04]}  Rc1 {[%clk 0:00:16]} 36. Qd8 {[%clk 0:00:50]}  Rd7 {[%clk 0:00:09]} 37. Qf6+ {[%clk 0:00:49]}  Kh6 {[%clk 0:00:07]} 38. Rxc1 {[%clk 0:00:46]} 1-0


[Site "https://www.chess.com"]

[Event "Titled Tuesday Blitz May 16 Late 2023"]
[White "Shapiro, Viktor"]
[Black "Tomiello, Lucas Costamilan"]
[WhiteFideId "4175700"]
[BlackFideId "22701940"]
[WhiteElo "2152"]
[BlackElo "2085"]
[Result "0-1"]
[Round "05"]
[TimeControl "180+2"]
[Date "2023.05.16"]
[WhiteClock "0:00:24"]
[BlackClock "0:00:34"]

1. Nf3 {[%clk 0:03:00]}  Nf6 {[%clk 0:02:59]} 2. c4 {[%clk 0:03:00]}  g6 {[%clk 0:02:58]} 3. Nc3 {[%clk 0:03:00]}  Bg7 {[%clk 0:02:58]} 4. d4 {[%clk 0:03:01]}  O-O {[%clk 0:02:59]} 5. Bg5 {[%clk 0:03:01]}  d6 {[%clk 0:02:58]} 6. e3 {[%clk 0:03:01]}  Nbd7 {[%clk 0:02:57]} 7. Be2 {[%clk 0:03:01]}  h6 {[%clk 0:02:57]} 8. Bh4 {[%clk 0:03:02]}  g5 {[%clk 0:02:47]} 9. Bg3 {[%clk 0:03:01]}  Nh5 {[%clk 0:02:47]} 10. Qc2 {[%clk 0:03:02]}  e6 {[%clk 0:02:34]} 11. O-O-O {[%clk 0:02:51]}  f5 {[%clk 0:02:30]} 12. c5 {[%clk 0:02:36]}  Nxg3 {[%clk 0:02:27]} 13. hxg3 {[%clk 0:02:36]}  Qe7 {[%clk 0:02:24]} 14. cxd6 {[%clk 0:02:29]}  cxd6 {[%clk 0:02:25]} 15. Kb1 {[%clk 0:02:28]}  Nf6 {[%clk 0:02:24]} 16. Qb3 {[%clk 0:02:20]}  Ng4 {[%clk 0:02:14]} 17. Rdf1 {[%clk 0:01:57]}  Bd7 {[%clk 0:02:10]} 18. Nd2 {[%clk 0:01:50]}  b5 {[%clk 0:01:56]} 19. Bxb5 {[%clk 0:01:39]}  Rab8 {[%clk 0:01:51]} 20. Qa4 {[%clk 0:01:37]}  Bxb5 {[%clk 0:01:42]} 21. Nxb5 {[%clk 0:01:37]}  Qb7 {[%clk 0:01:33]} 22. Nc4 {[%clk 0:01:34]}  Qxb5 {[%clk 0:01:32]} 23. Qxb5 {[%clk 0:01:33]}  Rxb5 {[%clk 0:01:33]} 24. Nxd6 {[%clk 0:01:33]}  Rb6 {[%clk 0:01:30]} 25. Nc4 {[%clk 0:01:32]}  Rb4 {[%clk 0:01:30]} 26. b3 {[%clk 0:01:31]}  e5 {[%clk 0:01:24]} 27. dxe5 {[%clk 0:01:24]}  Nxe5 {[%clk 0:01:23]} 28. Nxe5 {[%clk 0:01:22]}  Bxe5 {[%clk 0:01:24]} 29. f4 {[%clk 0:01:21]}  gxf4 {[%clk 0:01:16]} 30. gxf4 {[%clk 0:01:21]}  Bg7 {[%clk 0:01:16]} 31. Rh5 {[%clk 0:01:11]}  a5 {[%clk 0:01:16]} 32. g4 {[%clk 0:01:04]}  a4 {[%clk 0:01:16]} 33. Rxf5 {[%clk 0:00:59]}  Rd8 {[%clk 0:00:57]} 34. Kc2 {[%clk 0:00:51]}  Rc8+ {[%clk 0:00:54]} 35. Kd2 {[%clk 0:00:44]}  axb3 {[%clk 0:00:50]} 36. axb3 {[%clk 0:00:44]}  Rxb3 {[%clk 0:00:50]} 37. Ke2 {[%clk 0:00:44]}  Rcc3 {[%clk 0:00:40]} 38. Rf3 {[%clk 0:00:44]}  Rb2+ {[%clk 0:00:40]} 39. Kd1 {[%clk 0:00:43]}  Ra3 {[%clk 0:00:35]} 40. Rc5 {[%clk 0:00:24]}  Bc3 {[%clk 0:00:34]} 0-1


[Site "https://www.chess.com"]